[Event "SixDays Budapest January-IMA 2023"]
[Site "Budapest"]
[Date "2023.01.27"]
[Round "7.5"]
[White "Orso, Miklos"]
[Black "Ihnat, Marek"]
[Result "1/2-1/2"]
[ECO "A05"]
[WhiteElo "2256"]
[BlackElo "2138"]
[Annotator "TA"]
[PlyCount "100"]
[EventDate "2023.01.23"]
[EventType "tourn"]
[EventCountry "HUN"]
[SourceTitle "playchess.com"]
[Source "ChessBase"]
[SourceQuality "1"]
[TimeControl "5400+30"]

{[%evp 17,100,-3,0,-5,-16,-18,-22,-20,-18,-18,-12,-20,-21,-18,-14,-36,36,22,43,8,12,0,14,0,0,0,16,0,17,8,20,0,35,0,37,0,0,0,0,0,0,-23,-29,-25,-25,-102,-106,-123,-123,-122,-122,-122,-122,-123,-122,-122,-115,-116,-116,-126,-81,-109,-87,-94,-89,-81,-88,-108,-88,-95,-49,-92,-78,-70,-21,-27,0,0,22,32,37,33,42,39,54]} 1. Nf3 {[%emt 0:02:28]} Nf6 {[%emt 0:01:14]} 2. c4 {[%emt 0:01:39]} g6 {[%emt 0:00:21]} 3. Nc3 {[%emt 0:00:14]} d5 {[%emt 0:00:10]} 4. cxd5 {[%emt 0:00:05]} Nxd5 {[%emt 0:00:04]} 5. g3 {[%emt 0:03:01]} Bg7 {[%emt 0:00:11]} 6. Bg2 {[%emt 0:00:06]} O-O {[%emt 0:00:11]} 7. Qb3 {[%emt 0:00:53]} Nb6 {[%emt 0:00:25]} 8. O-O {[%emt 0:00:23]} Nc6 {[%emt 0:00:04]} 9. d3 {[%emt 0:02:18]} e5 {[%emt 0:00:52][%cal Be7e5,Be5d4][%mdl 32]} 10. a3 {[%emt 0:01:18] A16: English Opening: 1...Nf6 with ...d5.} Nd4 {[%emt 0:00:46]} 11. Nxd4 {[%emt 0:08:58]} exd4 {[%emt 0:00:15]} 12. Ne4 {[%emt 0:00:20] The position is equal.} Be6 {[%emt 0:05:13]} 13. Qc2 {[%emt 0:00:09] [#]} Bd5 $146 {[%emt 0:01:43]} ({Predecessor:} 13... c6 14. Nc5 Qe7 15. Nxe6 Qxe6 16. Re1 Rfe8 17. Bd2 Rad8 18. a4 Nd5 19. a5 a6 20. Qb3 Qd7 21. Rac1 Re7 22. Bg5 Nf6 23. h3 Re5 24. Bd2 Rb5 25. Qc2 {½-½ Meszaros,I (2044)-Vuity,J HUN-chT2 Toth 0708 2007 (2)}) 14. Bg5 {[%emt 0:02:14]} f6 {[%emt 0:05:04]} 15. Bf4 {[%emt 0:02:03]} c6 {[%emt 0:02:18]} 16. Rfe1 {[%emt 0:02:56]} Bxe4 {[%emt 0:03:22]} ({Black should play} 16... f5 $15 17. Bg5 Qd7) 17. Bxe4 {[%emt 0:01:38]} (17. dxe4 {seems wilder.} f5 18. exf5 Rxf5 19. e4) 17... Kh8 {[%emt 0:02:57]} 18. Qc1 {[%emt 0:04:14]} f5 {[%emt 0:01:11]} 19. Bg2 {[%emt 0:02:42]} Re8 {[%emt 0:00:49]} 20. Bh6 {[%emt 0:03:18]} Bf6 {[%emt 0:00:43]} 21. h4 {[%emt 0:03:59]} Re6 {[%emt 0:02:08]} 22. Qd2 {[%emt 0:02:50]} Qe7 {[%emt 0:03:31]} 23. Rac1 {[%emt 0:03:17]} (23. e4 $5 {[%cal Re4f5]}) 23... Re8 {[%emt 0:02:21][%cal Re6e2]} 24. Kf1 {[%emt 0:04:05]} Nd7 {[%emt 0:01:18][%cal Bb6d7,Bd7e5,Be5g4][%mdl 32]} 25. Bf4 {[%emt 0:16:13]} (25. b4 $5 {[%cal Rb4b5]}) 25... Ne5 {[%emt 0:03:01]} 26. Kg1 {[%emt 0:07:11]} Ng4 {[%emt 0:07:49]} 27. Bf3 {[%emt 0:00:20]} Ne5 {[%emt 0:00:36]} 28. Bg2 {[%emt 0:00:12]} Nf7 {[%emt 0:00:11][%cal Re6e2]} 29. Rc2 {[%emt 0:03:08]} Kg7 {[%emt 0:00:44]} 30. Qd1 {[%emt 0:07:27]} Ne5 {[%emt 0:04:07]} 31. Bd2 {[%emt 0:04:24] [#]} (31. Qd2 $11 {remains equal.}) 31... Nxd3 $1 $17 {[%emt 0:03:43][%mdl 512]} 32. exd3 {[%emt 0:01:16] Rxe6 would be deadly.} (32. Bh6+ Kxh6) 32... Rxe1+ {[%emt 0:00:06]} 33. Bxe1 {[%emt 0:00:09]} Qxe1+ {[%emt 0:00:05]} 34. Qxe1 {[%emt 0:00:07]} Rxe1+ {[%emt 0:00:04][%mdl 4096] Endgame KRB-KRB} 35. Bf1 {[%emt 0:00:21]} Kf7 {[%emt 0:03:07][%cal Of5f4]} 36. Kg2 {[%emt 0:00:04]} Bg7 {[%emt 0:01:31]} 37. Be2 {[%emt 0:00:14]} Bh6 {[%emt 0:01:03]} 38. f4 {[%emt 0:00:32]} Ke6 {[%emt 0:02:04]} 39. Bf3 {[%emt 0:01:25]} Kd6 {[%emt 0:00:28]} 40. Rd2 {[%emt 0:01:43]} Re3 {[%emt 0:00:28]} 41. Bd1 {[%emt 0:00:13]} Bg7 {[%emt 0:01:19]} 42. Bc2 {[%emt 0:02:30]} b5 {[%emt 0:05:59]} 43. Bb3 {[%emt 0:00:41]} Re8 {[%emt 0:08:47] Repels Bg8} (43... h6 $17 {[%cal Og6g5]} 44. Bf7 g5) 44. h5 {[%emt 0:01:45]} gxh5 {[%emt 0:01:10]} 45. Bf7 {[%emt 0:00:04][%csl LRe8,LRh5]} Rc8 {[%emt 0:02:42]} ({Better is} 45... Re7 $15 46. Bxh5 c5) 46. Re2 $11 {[%emt 0:00:50]} c5 {[%emt 0:00:44]} 47. Re6+ {[%emt 0:01:28]} Kd7 {[%emt 0:00:19] [#] White must now prevent ...Rf8.} (47... Kc7 $5 {[%cal Rc5c4]}) 48. Ra6 $1 {[%emt 0:00:49][%mdl 1024] Be6+ is the strong threat. White has compensation.} Rc7 {[%emt 0:00:19] White is slightly better.} 49. Be6+ {[%emt 0:00:26]} Ke7 {[%emt 0:00:31]} 50. b3 {[%emt 0:00:21]} h6 {[%emt 0:15:38] Weighted Error Value: White=0.12 (very precise) /Black=0.14 (very precise)} 1/2-1/2